{"text_format":"1","workbook":"xlsx","n_sheets":9,"sheets":["Daten zum Auftrag","vereinfachte Gesamtkalkulat ","Code","Einleitung","Personalkosten","Tabelle4","Tabelle1","Tabelle2","Tabelle3"],"not_rendered":{"charts":0,"images":3,"macros":1,"external_links":0,"defined_names":9,"comments":2,"pivot_tables":0},"unopened":[],"bounds":{"document_bytes":16777216,"sheet_cells":100000,"rows_first":2000,"rows_last":500,"rows_between":2000,"halvings":0,"cell_chars":16384,"cell_head_chars":4096},"cells_cut":0,"cells_raw":0,"read":"whole","date_system":"1900"}

{"sheet":"Daten zum Auftrag","index":0,"n_rows":74,"n_cols":23,"rows_kept":74,"cut":false,"hidden":true,"merged":[[67,6,67,10],[50,6,50,10],[69,2,69,4],[30,8,30,10],[33,1,33,5],[33,6,33,10],[50,1,50,5],[13,4,13,10],[6,4,6,7],[8,4,8,10],[0,0,0,4],[3,4,3,10],[1,0,1,9],[10,4,10,10],[12,4,12,10]]}
["Grau markierte Felder sind vom Antragsteller auszufüllen!"]
["Daten zum Auftrag / zur Kalkulation",null,null,null,null,null,null,null,null,null,null,null,null,null,null,null,null,null,null,null,null,null,"Partner EU (ohne USt)"]
[null,null,null,null,null,null,null,null,null,null,null,null,null,null,null,null,null,null,null,null,null,null,"Partner Hochschule Bayern (ohne Ust)"]
["AUFTRAG DES / DER ",null,null,null,null,null,null,null,null,null,null,null,null,null,null,null,null,null,null,null,null,null,"Partner Inland (mit USt)"]
[null,null,null,null,"(Unternehmen / Firma)",null,null,null,null,null,null,null,null,null,null,null,null,null,null,null,null,null,"Partner Drittland (mit USt)"]
[null,null,null,null,null,null,null,null,null,null,null,null,null,null,null,null,null,null,null,null,null,null,"Partner Drittland (ohne Ust)"]
["PARTNERLAND / UST",null,null,null,null,null,null,null,"Å Bitte auswählen!",null,null,null,null,null,null,null,null,null,null,null,null,null,"Partner Inland (mit USt) ermäßigter Steuersatz 16%"]
[null,null,null,null,null,null,null,null,null,null,null,null,null,null,null,null,null,null,null,null,null,null,"Partner Inland (mit Ust) ermäßigter Steuersatz 5%"]
["Unternehmer-Nr.:/Ident-Nr.:"]
[null,null,null,null,"(Nur bei Partnern aus EU oder Drittland)"]
["AN DEN LEHRSTUHL"]
[]
["ÜBER"]
[]
[null,null,null,null,"(genaue Bezeichnung des Auftrags)"]
["ANLAGEN",null,null,"*","Erklärung zur steuerlichen Behandlung"]
["(bitte beifügen)",null,null,"*","Drittmittelanzeige"]
[null,null,null,"*","Erklärung zum Forschungs- / Drittmittelvorhaben"]
[]
[]
[]
[]
["I.","An das Referat II /1.5"]
[]
[null,"Haushaltsrechtliche Prüfung"]
[null,"mit der Bitte um rechnerische Prüfung des Auftrages / Angebotes hinsichtlich der"]
[]
[null,"Kalkulation (Vollkosten)      ->evtl. ÄNDERUNGEN SIEHE BEIBLATT"]
[]
[null,"Festlegung des \"Overhead-Anteils\" für allgemeine Kosten (z. B. Arbeitsplatz- und Gemeinkosten,"]
[null,"Personalaufwand in Infrastruktureinrichtungen der Universität etc.):"]
[null,0.15,"des Rechnungsbetrages"]
[]
[null,"Projektkostenstelle:"]
[]
[null,"Bayreuth, den"]
[null,null,null,null,null,null,null,null,null,"    (Unterschrift des Sachbearbeiters)"]
[null,"Steuerrechtliche Prüfung"]
[null,"Es besteht   UMSATZSTEUERPFLICHT",null,null,null,null,"          Ja",null,"          Nein"]
[null,"Wenn nein, bitte kurze Angaben: ___________________________________________________________"]
[null,"Bei EU-Partnern, Ident.-Nr.:  ________________________________"]
[null,"Bei Partnern außerhalb der EU, Unternehmer-Nr.:  _____________________________"]
[]
[null,"Die Einordnung in BgA (AF/WD) erfolgt nach Angabe des Lehrstuhls gem. steuerlicher Bescheinigung"]
[]
[null,"Bayreuth, den"]
[null,null,null,null,null,null,null,"(Unterschrift des Sachbearbeiters)"]
[]
["II.","Bestätigung des ausführenden Lehrstuhles"]
[]
[null,"Kostenstelle für Materialpauschale:"]
[]
[null,"Der direkte Vorsteuerabzug bei Fremdleistungen wird beantragt"]
[]
[null,"bei bereits abgeschlossenen Projekten"]
[]
[null,"Die ordnungsgemäße und vollständige Ausführung wird bestätigt"]
[]
[]
[null,"Die in der Kalkulation angegebenen Stunden für Gerätenutzung sind wie kalkuliert angefallen"]
[]
[null,"Die in der Kalkulation angegebenen Stunden für Stammpersonal"]
[]
[null,null," sind wie kalkuliert angefallen (nicht anzukreuzen bei Projekten mit Teilzahlungen)"]
[]
[null,null," wurden durch Stundenaufzeichung nachgewiesen"]
[]
[null,"Abschluss auf Restmittelkostenstelle:"]
[]
[null,"Bayreuth, den"]
[null,null,null,null,null,null,null,null,"(Unterschrift des Projektverantwortlichen)"]
["III.","Rückgabe an Referat II/1.5"]
[]
[null,"mit der Bitte um Rechnungsstellung und Überwachung des Geldeingangs"]

{"sheet":"vereinfachte Gesamtkalkulat ","index":1,"n_rows":114,"n_cols":26,"rows_kept":114,"cut":false,"hidden":false,"merged":[[1,0,1,1],[3,1,3,3],[4,1,4,3],[5,1,5,3],[0,0,0,4],[55,5,56,8],[6,1,6,3],[51,0,51,1],[49,2,50,2],[47,0,47,1],[7,1,7,3]]}
["Kalkulation von sonstigen wirtschaftlichen Tätigkeiten"]
["Stand: Juni 2024",null,null,null,null,null,null,null,null,null,null,null,null,null,null,null,null,"A3"]
[null,null,null,null,null,null,null,null,null,null,null,null,null,null,null,null,null,"A4",null,null,null,null,null,null,0]
["Art der Tätigkeit",null,null,null,null,"Å Bitte auswählen!",null,null,null,null,null,null,null,null,null,null,null,"A5",null,null,null,null,null,null,"Partner EU (ohne USt)"]
["Ansprechpartner bei externen Aufträgen",null,null,null,null,null,null,null,null,null,null,null,null,null,null,null,null,"A6",null,null,null,null,null,null,"Partner Drittland (ohne USt)"]
["durchführende Stelle (Lehrstuhl)",null,null,null,null,null,null,null,null,null,null,null,null,null,null,null,null,"A6+Z",null,null,null,null,null,null,"Partner Drittland (mit USt) 19%",0.19]
["Angaben zur Rechnungsstellung",null,null,null,null,null,null,null,null,null,null,null,null,null,null,null,null,"A7",null,null,null,null,null,null,"Partner Inland (mit USt) 7%",7.0000000000000007E-2]
["PARTNERLAND / UST",null,null,null,null,"Å Bitte auswählen!",null,null,null,null,null,null,null,null,null,null,null,"A8",null,null,null,null,null,null,"Partner EU (mit USt) 16%",0.16]
[null,null,null,null,null,"ERLÄUTERUNGEN:",null,null,null,null,null,null,null,null,null,null,null,"A9",null,null,null,null,null,null,"Partner Inland (mit USt) 19%",0.19]
["Einsatz von Stammpersonal","Dauer","Preis","Kosten",null,null,null,null,null,null,null,null,null,null,null,null,null,"A9+Z ",null,null,null,null,null,null,"Partner EU (mit USt) 19%",0.19]
[null,null,{"$f":"IF(ISERROR(VLOOKUP(A11,Code!$A$8:$F$59,6,0)),\"\",VLOOKUP(A11,Code!$A$8:$F$59,6,0))","v":""},{"$f":"IF(ISERROR(C11*B11),\"\",C11*B11)","v":""},null,"Arbeitsplatzkosten und Grundausstattung",null,null,null,null,null,null,null,null,null,null,null,"A10",null,null,null,null,null,null,"Innenleistung Lehrstuhl/Einrichtung",0]
[null,null,{"$f":"IF(ISERROR(VLOOKUP(A12,Code!$A$8:$F$59,6,0)),\"\",VLOOKUP(A12,Code!$A$8:$F$59,6,0))","v":""},{"$f":"IF(ISERROR(C12*B12),\"\",C12*B12)","v":""},null,null,null,null,null,null,null,null,null,null,null,null,null,"A10+Z"]
[null,null,{"$f":"IF(ISERROR(VLOOKUP(A13,Code!$A$8:$F$59,6,0)),\"\",VLOOKUP(A13,Code!$A$8:$F$59,6,0))","v":""},{"$f":"IF(ISERROR(C13*B13),\"\",C13*B13)","v":""},null,null,null,null,null,null,null,null,null,null,null,null,null,"A11"]
[null,null,{"$f":"IF(ISERROR(VLOOKUP(A14,Code!$A$8:$F$59,6,0)),\"\",VLOOKUP(A14,Code!$A$8:$F$59,6,0))","v":""},{"$f":"IF(ISERROR(C14*B14),\"\",C14*B14)","v":""},null,null,null,null,null,null,null,null,null,null,null,null,null,"A12"]
["Summe",null,null,{"$f":"SUM(D11:D14)","v":0},null,null,null,null,null,null,null,null,null,null,null,null,null,"A13"]
[null,null,null,null,null,null,null,null,null,null,null,null,null,null,null,null,null,"A13+Z"]
["Personal Einstellungen (direkt für Tätigkeit)","Dauer","Preis","Kosten",null,null,null,null,null,null,null,null,null,null,null,null,null,"A14"]
[null,null,{"$f":"IF(ISERROR(VLOOKUP(A18,Code!$A$8:$F$59,6,0)),\"\",VLOOKUP(A18,Code!$A$8:$F$59,6,0))","v":""},{"$f":"IF(ISERROR(C18*B18),\"\",C18*B18)","v":""},null,null,null,null,null,null,null,null,null,null,null,null,null,"A15"]
[null,null,{"$f":"IF(ISERROR(VLOOKUP(A19,Code!$A$8:$F$59,6,0)),\"\",VLOOKUP(A19,Code!$A$8:$F$59,6,0))","v":""},{"$f":"IF(ISERROR(C19*B19),\"\",C19*B19)","v":""},null,null,null,null,null,null,null,null,null,null,null,null,null,"A16"]
[null,null,{"$f":"IF(ISERROR(VLOOKUP(A20,Code!$A$8:$F$59,6,0)),\"\",VLOOKUP(A20,Code!$A$8:$F$59,6,0))","v":""},{"$f":"IF(ISERROR(C20*B20),\"\",C20*B20)","v":""},null,null,null,null,null,null,null,null,null,null,null,null,null,"A16+Z"]
["Summe",null,null,{"$f":"SUM(D18:D20)","v":0},null,null,null,null,null,null,null,null,null,null,null,null,null,"A13 Akad.Rat"]
[null,null,null,null,null,null,null,null,null,null,null,null,null,null,null,null,null,"W1"]
["Einsatz von Geräten","Dauer","Preis","Kosten",null,null,null,null,null,null,null,null,null,null,null,null,null,"W2"]
[null,null,null,{"$f":"C24*B24","v":0},null,"Großgeräte und Sondermaschinen müssen einzeln kalkuliert",null,null,null,null,null,null,null,null,null,null,null,"W3"]
[null,null,null,0,null,"werden",null,null,null,null,null,null,null,null,null,null,null,"C1 kw"]
[null,null,null,0,null,null,null,null,null,null,null,null,null,null,null,null,null,"C2 kw"]
["Summe",null,null,{"$f":"SUM(D24:D26)","v":0},null,null,null,null,null,null,null,null,null,{"$f":"L27*M27","v":0},null,null,null,"C3 kw"]
[null,null,null,null,null,null,null,null,null,null,null,null,null,null,null,null,null,"C4 kw"]
["Einsatz von Material","Menge","Preis","Kosten",null,null,null,null,null,null,null,null,null,null,null,null,null,"E1"]
[null,null,null,{"$f":"C30*B30","v":0},null,"Material ist grundsätzlich einzeln zu bewerten, wenn Erfahrungs- ",null,null,null,null,null,null,null,null,null,null,null,"E2"]
[null,null,null,0,null,"werte vorliegen kann auch eine \"Materialpauschale\"",null,null,null,null,null,null,null,null,null,null,null,"E2Ü"]
[null,null,null,0,null,"bis maximal 350,00 EUR zum Ansatz kommen ",null,null,null,null,null,null,null,null,null,null,null,"E3"]
["Summe",null,null,{"$f":"SUM(D30:D32)","v":0},null,null,null,null,null,null,null,null,null,null,null,null,null,"E4"]
[null,null,null,null,null,null,null,null,null,null,null,null,null,null,null,null,null,"E5"]
["Fremdleistungen","Menge","Preis","Kosten",null,null,null,null,null,null,null,null,null,null,null,null,null,"E6"]
[null,null,null,{"$f":"C36*B36","v":0},null,null,null,null,null,null,null,null,null,null,null,null,null,"E7"]
[null,null,null,{"$f":"C37*B37","v":0},null,null,null,null,null,null,null,null,null,null,null,null,null,"E8"]
["Summe",null,null,{"$f":"SUM(D36:D37)","v":0},null,null,null,null,null,null,null,null,null,null,null,null,null,"E9"]
[null,null,null,null,null,null,null,null,null,null,null,null,null,null,null,null,null,"E10"]
["allg. Betriebs-/Verwaltungsausgaben","Menge","Preis","Kosten",null,null,null,null,null,null,null,null,null,null,null,null,null,"E11"]
[null,null,null,{"$f":"C41*B41","v":0},null,null,null,null,null,null,null,null,null,null,null,null,null,"E12"]
[null,null,null,{"$f":"C42*B42","v":0},null,null,null,null,null,null,null,null,null,null,null,null,null,"E13"]
["Summe",null,null,{"$f":"SUM(D41:D42)","v":0},null,null,null,null,null,null,null,null,null,null,null,null,null,"E13Ü"]
[null,null,null,null,null,null,null,null,null,null,null,null,null,null,null,null,null,"E14"]
["å Selbstkosten vor Overhead",null,null,{"$f":"D15+D21+D27+D33+D38+D43","v":0},null,null,null,null,null,null,null,null,null,null,null,null,null,"E15"]
[null,null,null,null,null,null,null,null,null,null,null,null,null,null,null,null,null,"E15Ü"]
["Kalkulation von sonstigen wirtschaftlichen Tätigkeiten",null,null,null,null,null,null,null,null,null,null,null,null,null,null,null,null,"SHK student. Hilfskräfte"]
[null,null,null,null,null,null,null,null,null,null,null,null,null,null,null,null,null,"nwHK student. Hilfskräfte"]
[null,null,null,null,null,null,null,null,null,null,null,null,null,null,null,null,null,"SHKBachelor student. Hilfskräfte"]
[null,null,"hier \"Ja\" eintragen"]
["å Selbstkosten vor Overhead",null,null,{"$f":"D15+D21+D27+D33+D38+D43","v":0}]
["Preissteigerungen während der Laufzeit\ninklusive Tariferhöhungen, bitte mit Eintrag \"Ja\" bestätigen",null,null,{"$f":"IF(C52=\"Ja\",D51*0.05,0)","v":0}]
[]
["å Selbstkosten nach Umlage",null,null,{"$f":"D52+D51","v":0}]
[]
["Gewinn in Prozent",null,null,{"$f":"D54*C56","v":0},null,"Der Nettoüberschuss wird auf AA 961 der Restmittelkostenstelle überführt"]
["Nettoüberschuss vorweg verfügbar",0.2,{"$f":"D56*B57","v":0}]
["Gewinn in EURO (alternativ)",null,null,{"$f":"C58","v":0}]
["Nettoüberschuss vorweg verfügbar",0.2,{"$f":"C58*B59","v":0}]
[]
["Nettosumme vor Overhead",null,null,{"$f":"D56+D54+D58","v":0}]
["Overhead","im Hundert",{"$f":"IF(A67=\"Innenleistung Lehrstuhl/Einrichtung\",0%,20%)","v":0.2},{"$f":"D61/75*(C62*100)","v":0}]
["Ertragssteuerumlageanteil",null,{"$f":"IF(A67=\"Innenleistung Lehrstuhl/Einrichtung\",0%,5%)","v":0.05},{"$f":"IF(C63=0,0,D61/75*5)","v":0}]
[]
["Gesamtnettosumme ",null,null,{"$f":"D61+D62+D63","v":0}]
[]
[null,{"$f":"VLOOKUP(A67,$Y$4:$Z$13,2,FALSE)","v":{"$error":"#N/A"}},{"$f":"B67","v":{"$error":"#N/A"}},{"$f":"D65*C67","v":{"$error":"#N/A"}}]
[]
["Bruttosumme",null,null,{"$f":"D65+D67","v":{"$error":"#N/A"}}]
[]
[]
[]
[]
[]
[]
[]
["Auf Dienstpflicht wird bestätigt:"]
[]
["Mir ist bekannt, dass nach dem EU-Gemeinschaftsrahmen für staatliche Beihilfen für Forschung,"]
["Entwicklung und Innovation (Beihilferahmen) zur Vermeidung von Wettbewerbsverzerrungen eine "]
["Trennung von wirtschaftlichen und nichtwirtschaftlichen Tätigkeiten erforderlich ist und insoweit eine "]
["Quersubventionierung von wirtschaftlicher Tätigkeit aus staatlichen Haushaltsmitteln unzulässig ist."]
[]
["Das obige Projekt / die obige Kalkulation trägt dem Rechnung und wurde deshalb im Zuge der"]
["Angebotserstellung nach einer Vollkostenkalkulation bzw. nach marktüblichen Preisen kalkuliert."]
[]
["Ferner wird sichergestellt, dass alle Ausgaben für das Projekt nachweisbar / spezifizierbar sind. "]
["Entsprechende Aufzeichnungen werden geführt und für eine evtl. Prüfung durch die EU nach den "]
["einschlägigen Aufbewahrungsbestimmungen aufbewahrt."]
[]
[]
["________________________________",null,"___________________________________"]
["Datum,  Unterschrift des Projektleiters",null,"Datum, Unterschrift des Lehrstuhlinhabers"]
[null,null,"(falls nicht gleichzeitig Projektleiter)"]
[]
[]
[]
[]
[]
[]
[]
[]
[]
[]
[]
[]
[]
[]
[]
[]
[]
[]
[]
[","]

{"sheet":"Code","index":2,"n_rows":59,"n_cols":6,"rows_kept":59,"cut":false,"hidden":true,"merged":[[0,0,0,5],[2,0,2,5],[3,0,3,1],[3,2,3,3],[4,0,6,0],[4,2,6,2],[1,0,1,5],[3,4,3,5],[4,1,6,1],[4,5,6,5],[4,3,6,3],[4,4,6,4],[55,0,55,2],[45,0,45,1],[45,2,45,3],[26,2,26,3],[55,4,55,5],[26,0,26,1],[48,2,49,2],[45,4,45,5],[26,4,26,5]]}
["A. Auftragsspezifische Personalkosten"]
["Personalvollkosten ab 1. Dezember 2022"]
["Nur grün hinterlegte Felder ausfüllen !"]
["Beamte",null,"Angestellte",null,"Personalvollkosten_Beamte/Angestellte"]
["BesGr","Stufe","Entgelt-gruppe ","Entgeltgruppe (Übergeleiteter Bestand)","Jahr (in Euro)","Stunde (in Euro)"]
[]
[]
["A3","8*","E2, E2Ü, E1","E2Ü",73359,44.73]
["A4","8*",null,null,76080,46.4]
["A5","Endstufe","E3","E3",76740,46.8]
["A6",null,"E5, E4",null,77613,47.32]
["A6+Z","Endstufe",null,null,80709,49.22]
["A7",7,"E7, E6","E7, E6",81088,49.44]
["A8","Endstufe","E8","E8",88155,53.76]
["A9",null,"E9","E9",91031,55.24]
["A9+Z ","Endstufe",null,null,101400,61.53]
["A10",6,"E10","E10",97265,59.02]
["A10+Z","Endstufe",null,null,103812,63]
["A11",7,"E11","E11",109049,66.17]
["A12","Endstufe","E12","E12",123293,74.819999999999993]
["A13",null,"E13, E13Ü","E13",129904,76.959999999999994]
["A13+Z","Endstufe",null,null,142730,84.55]
["A14",7,"E14","E14, E13Ü",142058,84.16]
["A15",8,"E15",null,158734,94.04]
["A16","Endstufe","E15Ü",null,180834,107.13]
["A16+Z","Endstufe",null,null,186267,110.34]
["Angestellte",null,"Angestellte",null,"Angestellte"]
["E1","8*",null,null,70407,42.93]
["E2",null,null,null,70407,42.93]
["E2Ü",null,null,null,70407,42.93]
["E3","Endstufe",null,null,73876,45.05]
["E4",null,null,null,74664,45.53]
["E5",null,null,null,74664,45.53]
["E6",null,null,null,78152,47.66]
["E7",7,null,null,78152,47.66]
["E8","Endstufe",null,null,85291,52.01]
["E9",null,null,null,88247,53.55]
["E10",5,null,null,94654,57.43]
["E11",7,null,null,106699,64.739999999999995]
["E12","Endstufe",null,null,120945,73.39]
["E13",null,null,null,127302,75.41]
["E13Ü",null,null,null,127302,75.41]
["E14",7,null,null,140093,82.99]
["E15",8,null,null,156149,92.51]
["E15Ü","Endstufe",null,null,178249,105.6]
["Beamte",null,"Beamte",null,"Beamte"]
["A13 Akad.Rat","Akad. Rat a. Z./Stufe 6",null,null,121293,71.849999999999994]
["W1",null,null,null,121182,71.790000000000006]
["W2",2,"ohne Leistungs-\nbezüge",null,152701,90.47]
["W3",2,null,null,177315,105.04]
[]
["C1 kw",13,null,null,136110,80.64]
["C2 kw","Endstufe",null,null,160835,95.28]
["C3 kw","Endstufe",null,null,177595,105.21]
["C4 kw","Endstufe",null,null,247950,146.88999999999999]
["Studentische Hilfskräfte",null,null,null,"Studentische Hilfskräfte"]
["SHK student. Hilfskräfte",null,null,null,null,22.39]
["nwHK student. Hilfskräfte",null,null,null,null,22.39]
["SHKBachelor student. Hilfskräfte",null,null,null,null,24.08]

{"sheet":"Einleitung","index":3,"n_rows":54,"n_cols":9,"rows_kept":54,"cut":false,"hidden":true,"merged":[[32,1,32,6],[33,6,37,6],[38,1,38,2],[48,1,48,4],[33,1,37,2],[33,3,37,3],[33,4,37,4],[33,5,37,5],[9,5,9,10],[5,5,5,10],[6,5,6,10],[4,5,4,10],[8,5,8,10],[7,5,7,10]]}
[]
[]
[]
[]
[null,null,null,null,null,"Formular H 1244"]
[null,null,null,null,null,"Stand: 01/2019"]
[null,null,null,null,null,"Kalkulationsschema für Auftragsforschung und wissenschaftliche Dienstleistung"]
[]
[null,null,null,null,null,"Bitte übermitteln Sie alle folgenden Blätter nur ausgedruckt mit Originalunterschrift!"]
[null,"Liebe Nutzerin, "]
[null,"lieber Nutzer,"]
[]
[null,"mit dieser Projektkalkulation werden die Vollkosten für ein Drittmittelprojekt berechnet. Diese Vorlage ist so aufgebaut, dass nur noch bestimmte Felder gefüllt werden müssen und am Ende eine komplette"]
[null,"Vollkostenrechnung entsteht. Bitte gehen Sie nach folgender Anleitung vor."]
[]
[null,"In den nachfolgenden Tabellenblättern:"]
[]
[null,"Personalkosten"]
[null,"Gerätenutzungskosten"]
[null,"Materialkosten"]
[null,"Fremdleistungskosten "]
[null,"sonstige direkt zurechenbare Kosten"]
[]
[null,"füllen Sie bitte nur die für Sie zutreffenden grün hinterlegten Felder aus."]
[null,"Alle anderen Felder sind gesperrt und können nicht bearbeitet werden."]
[null,"Im letzten Tabellenblatt"]
[null,"Gesamtkosten"]
[null,"werden automatisch die Vollkosten der Kalkulation errechnet."]
[]
[]
[null,"Auf jedem Tabellenblatt ist ein Beispieleintrag abgebildet, der Ihnen als Muster dienen kann. Hier exemplarisch das Beispiel aus dem Tabellenblatt Materialkosten:"]
[]
[null,"Beispiel"]
[null,"eingesetzes Material       z. B. Chemikalien",null,"Preis einer Einheit in Euro","Einheit","Menge","Gesamt- preis                 in Euro"]
[]
[]
[]
[]
[null,"Acetylsalicylsäure",null,1.5,"g",200,{"$f":"F39*D39","v":300}]
[]
[null,null,null,null,null,null,null,null,"Das Feld \"Gesamtpreis in Euro\" berechnet sich automatisch aus den Feldern \"Preis einer Einheit in Euro\" und "]
[null,null,null,null,null,null,null,null,"\"Menge\" sobald beide Felder gefüllt sind."]
[]
[null,null,null,null,null,null,null,null,"Bitte füllen Sie die grün hinterlegten Felder gemäß Ihrer Beschriftung und Ihrem Projektbedarf aus."]
[]
[null,"Alle anderen Felder bleiben entweder unverändert oder berechnen sich nach Eingabe aller wichtigen Felder von selbst. Gelb hinterlegte Felder sind Summenfelder."]
[]
[null,"Sollten Sie zu den einzelnen Tabellenblättern dennoch Fragen haben, befinden sich auf allen Tabellenblättern die jeweiligen Ansprechpartner mit Kontaktinformationen."]
[]
[null,"Da auf dem Tabellenblatt Gesamtkalkulation die Mehrwertsteuer hinzugerechnet wird, müssen alle eingetragenen Beträge Nettobeträge sein. Sollten Sie nur die Bruttobeträge zur Hand haben"]
[null,"können Sie den Nettobetrag nach folgender Formel berechnen:"]
[null,"Bruttobetrag","geteilt durch ",119,"mal",100,"ist gleich ","Nettobetrag"]
[null,119,"/",119,"*",100,"=",100,"Beispiel 1"]
[null,272.5,"/",119,"*",100,"=",{"$f":"B54/119*100","v":228.99159663865544},"Beispiel 2"]

{"sheet":"Personalkosten","index":4,"n_rows":79,"n_cols":19,"rows_kept":79,"cut":false,"hidden":true,"merged":[[68,16,68,18],[55,15,61,18],[41,0,41,2],[19,15,19,18],[20,15,44,18],[46,9,47,9],[49,0,50,0],[67,16,67,18],[46,11,47,11],[28,8,28,12],[9,16,9,18],[10,16,10,18],[13,15,13,17],[46,0,47,0],[46,10,47,10],[15,15,15,17],[14,15,14,17],[27,8,27,12],[27,0,27,7],[28,0,28,7],[42,21,50,24],[49,2,50,8],[46,2,47,8],[49,9,50,9],[46,13,47,13],[49,13,50,13],[46,12,47,12],[49,10,50,10],[3,2,3,3],[4,12,6,12],[0,0,0,9],[1,0,1,9],[4,8,6,8],[3,9,6,9],[4,3,6,3],[3,11,6,11],[2,0,2,13],[4,0,6,0],[3,4,3,5],[69,16,69,18],[53,0,53,2],[3,13,6,13],[4,2,6,2],[3,0,3,1],[3,15,5,17],[49,11,50,11],[49,12,50,12],[3,6,3,7],[33,2,34,3],[4,1,6,1],[4,10,6,10],[4,7,6,7],[4,4,6,4],[4,5,6,5],[4,6,6,6]]}
["A. Auftragsspezifische Personalkosten"]
["Personalvollkosten ab Dezember 2022"]
["Nur grün hinterlegte Felder ausfüllen !"]
["Beamte",null,"Angestellte",null,"Personaldurchschnittskosten",null,"Personalvollkosten",null,"Std.","Beamte Stammpersonal = vorhandenes Lehrstuhlpersonal, das über eine Haushaltsstelle finanziert wird","Std.","Angestellte Stammpersonal = vorhandenes Lehrstuhlpersonal, das über eine Haushaltsstelle finanziert wird","Std.","Direkteinstellungen= Personal, welches eigens für die Durchführung des Vorhabens auf das Projekt eingestellt wird",null,"Die Arbeitsplatzkosten und die Grundausstattung sind bei den Personalvollkosten mit eingerechnet."]
["BesGr","Stufe","Entgelt-gruppe ","Entgelt-gruppe (Über-geleiteter Bestand)","Jahr (in Euro)","Stunde (in Euro)","Jahr                      (in Euro)","Stunde                   (in Euro)"]
[]
[]
["A3","Endstufe","E2, E2Ü, E1","E2Ü",null,null,{"$f":"Code!$E8","v":73359},{"$f":"VLOOKUP(A8,Code!$A$5:$F$26,6,0)","v":44.73},null,{"$f":"H8*I8","v":0},null,{"$f":"K8*H8","v":0},null,{"$f":"H8*M8","v":0}]
["A4","Endstufe",null,null,null,null,{"$f":"Code!$E9","v":76080},{"$f":"VLOOKUP(A9,Code!$A$5:$F$26,6,0)","v":46.4},null,{"$f":"H9*I9","v":0},null,{"$f":"K9*H9","v":0},null,{"$f":"H9*M9","v":0}]
["A5","Endstufe","E3","E3",null,null,{"$f":"Code!$E10","v":76740},{"$f":"VLOOKUP(A10,Code!$A$5:$F$26,6,0)","v":46.8},null,0,null,0,null,0]
["A6",null,"E5, E4",null,null,null,{"$f":"Code!$E11","v":77613},{"$f":"VLOOKUP(A11,Code!$A$5:$F$26,6,0)","v":47.32},null,0,null,0,null,0]
["A6+Z","Endstufe",null,null,null,null,72162,{"$f":"VLOOKUP(A12,Code!$A$5:$F$26,6,0)","v":49.22},null,0,null,0,null,0]
["A7",8,"E7, E6","E7, E6",null,null,72527,{"$f":"VLOOKUP(A13,Code!$A$5:$F$26,6,0)","v":49.44},null,0,null,0,null,0]
["A8","Endstufe","E8","E8",null,null,79163,{"$f":"VLOOKUP(A14,Code!$A$5:$F$26,6,0)","v":53.76},null,0,null,0,null,0,null,"Stunden pro Jahr",null,null,1720]
["A9",null,"E9","E9",null,null,81899,{"$f":"VLOOKUP(A15,Code!$A$5:$F$26,6,0)","v":55.24},null,0,null,0,null,0,null,"Stunden pro Monat",null,null,{"$f":"S14/12","v":143.33333333333334}]
["A9+Z ","Endstufe",null,null,null,null,91487,{"$f":"VLOOKUP(A16,Code!$A$5:$F$26,6,0)","v":61.53},null,0,null,0,null,0,null,"Stunden pro Tag",null,null,{"$f":"S15/19","v":7.5438596491228074}]
["A10",6,"E10","E10",null,null,85909,{"$f":"VLOOKUP(A17,Code!$A$5:$F$26,6,0)","v":59.02},null,0,null,0,null,0]
["A10+Z","Endstufe",null,null,null,null,93808,{"$f":"VLOOKUP(A18,Code!$A$5:$F$26,6,0)","v":63},null,0,null,0,null,0]
["A11",8,"E11","E11",null,null,96992,{"$f":"VLOOKUP(A19,Code!$A$5:$F$26,6,0)","v":66.17},null,{"$f":"H19*I19","v":0},null,0,null,0]
["A12","Endstufe","E12","E12",null,null,112295,{"$f":"VLOOKUP(A20,Code!$A$5:$F$26,6,0)","v":74.819999999999993},null,0,null,0,null,0,null,"Forschungs- und Lehrzulage"]
["A13",null,"E13, E13Ü","E13",null,null,{"$f":"Code!$E21","v":129904},{"$f":"VLOOKUP(A21,Code!$A$5:$F$26,6,0)","v":76.959999999999994},null,0,null,0,null,0,null,"Professoren und Professorinnen, die im Hauptamt Mittel privater Dritter für Forschungs- und Lehrvorhaben der Hochschule einwerben und diese Vorhaben durchführen, kann für die Dauer des Drittmittelflusses aus diesen Mitteln eine nicht ruhegeltfähige Zulage gewährt werden, soweit der Drittmittelgeber mit der Vergabe einverstanden ist. Eine Zulage darf nur gewährt werden, soweit neben den übrigen Kosten des Forschungs- und Lehrvorhabens auch die für die Gewährung der Forschungs- und Lehrzulage aufzuwendenden Beträge durch die Drittmittel gedeckt sind. Forschungs- und Lehrzulagen dürfen innerhalb eines Kalenderjahres insgesamt 100 v. H. des Jahresgrundgehalts des Professors oder der Professorin nicht überschreiten. Die Lehrtätigkeit im Rahmen eines Lehrvorhabens, für das eine Lehrzulage gewährt wird, ist auf die jeweils obliegende Lehrverpflichtung nicht anzurechnen.                           Anm.: Die BayHLeistBV ist nur auf Professoren in der W-Besoldung anwendbar."]
["A13+Z","Endstufe",null,null,null,null,{"$f":"Code!$E22","v":142730},{"$f":"VLOOKUP(A22,Code!$A$5:$F$26,6,0)","v":84.55},null,0,null,0,null,0]
["A14",7,"E14","E14, E13Ü",null,null,{"$f":"Code!$E23","v":142058},{"$f":"VLOOKUP(A23,Code!$A$5:$F$26,6,0)","v":84.16},null,0,null,0,null,0]
["A15",8,"E15",null,null,null,140455,{"$f":"VLOOKUP(A24,Code!$A$5:$F$26,6,0)","v":94.04},null,0,null,0,null,0]
["A16","Endstufe","E15Ü",null,null,null,165564,{"$f":"VLOOKUP(A25,Code!$A$5:$F$26,6,0)","v":107.13},null,0,null,0,null,0]
["A16+Z","Endstufe",null,null,null,null,170574,{"$f":"VLOOKUP(A26,Code!$A$5:$F$26,6,0)","v":110.34},null,0,null,0,null,0]
[]
["Sonderfall:  Kalkulierte Personalkosten ",null,null,null,null,null,null,null,"Betrag in Personalabteilung zu erfragen und zu bestätigen"]
["zuzüglich 30% arbeitsplatzbezogene Gemeinkosten",null,null,null,null,null,null,null,null,null,null,null,null,{"$f":"N28*0.3","v":0}]
[]
[]
["A13","Akad. Rat a. Z./Stufe 6",null,null,null,null,91301,54.09,null,{"$f":"H32*I32","v":0},null,null,null,{"$f":"H32*M32","v":0}]
["W1",null,null,null,null,null,90864,53.83,null,{"$f":"H33*I33","v":0},null,null,null,{"$f":"H33*M33","v":0}]
["W2",2,"ohne Leistungs-\nbezüge",null,null,null,115109,68.19,null,{"$f":"H34*I34","v":0},null,null,null,{"$f":"H34*M34","v":0}]
["W3",2,null,null,null,null,134043,79.41,null,{"$f":"H35*I35","v":0},null,null,null,{"$f":"H35*M35","v":0}]
[]
["C1 kw",13,null,null,null,null,102340,60.63,null,0,null,null,null,0]
["C2 kw","Endstufe",null,null,null,null,121372,71.900000000000006,null,0,null,null,null,0]
["C3 kw","Endstufe",null,null,null,null,134265,79.540000000000006,null,0,null,null,null,0]
["C4 kw","Endstufe",null,null,null,null,187836,111.28,null,0,null,null,null,0]
[]
["Studentische Hilfskräfte"]
["SHK student. Hilfskräfte",null,null,null,null,null,null,{"$f":"Code!F57","v":22.39},null,null,null,{"$f":"K43*H43","v":0},null,{"$f":"M43*H43","v":0}]
["nwHK student. Hilfskräfte",null,null,null,null,null,null,{"$f":"Code!F58","v":22.39},null,null,null,{"$f":"K44*H44","v":0},null,{"$f":"M44*H44","v":0}]
["SHKBachelor student. Hilfskräfte",null,null,null,null,null,null,{"$f":"Code!F59","v":24.08},null,null,null,{"$f":"K45*H45","v":0},null,{"$f":"M45*H45","v":0}]
[]
[]
[null,null,null,null,null,null,null,null,null,null,null,null,null,null,null,"Die Stundenangaben bei der Gruppe studentische "]
[null,null,null,null,null,null,null,null,null,"Stammpers.Beamte",null,"Stammpers. Angest.",null,"Direkteinstellungen",null,"Hilfskräfte sind nicht mit der oben genannten Zahl "]
["Gesamt",null,"in Euro",null,null,null,null,null,null,{"$f":"SUM(J8:J45)","v":0},null,{"$f":"SUM(L8:L45)","v":0},null,{"$f":"SUM(N8:N45)","v":0},null,"identisch. Bitte geben Sie bei den studentischen"]
[null,null,null,null,null,null,null,null,null,null,null,null,null,null,null,"Hilfskräften die genaue Stundenzahl ein, z. B. 39,5"]
[null,null,null,null,null,null,null,null,null,null,null,null,null,null,null,"Stunden für die Monatsarbeitszeit. Für die Jahres-"]
[null,null,null,null,null,null,null,null,null,null,null,null,null,null,null,"arbeitszeit dies mal 12, für Wochen geteilt durch 4."]
["Forschungs- und Lehrzulage"]
[]
[]
[]
[]
[]
[]
[]
[]
[]
[]
[]
[]
[]
[null,null,null,null,null,null,null,null,null,null,null,null,null,null,null,"SHK","studentische Hilfskraft"]
[null,null,null,null,null,null,null,null,null,null,null,null,null,null,null,"nwHK","nicht wissenschaftliche Hilfskraft"]
[null,null,null,null,null,null,null,null,null,null,null,null,null,null,null,"SHKBachelor","studentische Hilfskraft Bachelor"]
[]
[]
[null,null,null,null,null,null,null,null,null,null,null,null,null,null,null,"Bitte alle Tabellenblätter ausfüllen:"]
[null,null,null,null,null,null,null,null,null,null,null,null,null,null,null,"Personalkosten"]
[null,null,null,null,null,null,null,null,null,null,null,null,null,null,null,"Gerätenutzungskosten"]
[null,null,null,null,null,null,null,null,null,null,null,null,null,null,null,"Materialkosten"]
[null,null,null,null,null,null,null,null,null,null,null,null,null,null,null,"Fremdleistungskosten"]
[null,null,null,null,null,null,null,null,null,null,null,null,null,null,null,"sonstige direkt zurechenbare Kosten"]
[null,null,null,null,null,null,null,null,null,null,null,null,null,null,null,"Gesamtkosten"]

{"sheet":"Tabelle4","index":5,"n_rows":0,"n_cols":0,"rows_kept":0,"cut":false,"hidden":true,"merged":[]}

{"sheet":"Tabelle1","index":6,"n_rows":0,"n_cols":0,"rows_kept":0,"cut":false,"hidden":true,"merged":[]}

{"sheet":"Tabelle2","index":7,"n_rows":0,"n_cols":0,"rows_kept":0,"cut":false,"hidden":true,"merged":[]}

{"sheet":"Tabelle3","index":8,"n_rows":0,"n_cols":0,"rows_kept":0,"cut":false,"hidden":true,"merged":[]}